bitfinex/quotes_ETHUSD_20241124
["timestamp","ask_amount","ask_price","bid_price","bid_amount"]
[1732453628143,3.55802,3324.5,3323.8,2.70773]
[1732453628339,0.55,3324.3,3323.7,2.70782]
[1732453628551,1.6221,3324.8,3324.1,2.70748]
[1732453628842,0.58022387,3324.7,3324.0,2.70757]
[1732453629054,0.07716294,3324.6,3323.8,2.70772]
[1732453629252,0.07716294,3324.6,3323.7,3.0]
[1732453629404,0.07716294,3324.6,3323.7,2.70782]
[1732453629608,0.07716294,3324.6,3323.6,2.73792996]
[1732453629609,0.07716294,3324.6,3324.1,2.70743]
[1732453629911,0.58022387,3324.5,3323.9,2.70766]
[1732453630234,3.00807,3324.4,3323.7,2.70779]
[1732453630450,3.92448868,3324.5,3323.5,2.70797]
[1732453630451,1.6221,3324.2,3323.5,2.70797]
[1732453630759,3.00875,3323.7,3323.0,2.70832]
[1732453630907,1.6221,3323.5,3322.9,0.292004]
[1732453631112,0.55,3323.3,3322.9,0.292004]
[1732453631316,3.00932,3323.0,3322.9,0.292004]
[1732453631519,1.6221,3322.7,3321.7,1.202276]
[1732453631724,3.03992387,3322.6,3321.7,1.202276]
[1732453631917,0.07700219,3322.6,3322.3,2.70891]
[1732453632131,0.07700219,3322.6,3322.5,2.7088]
[1732453632346,0.07700219,3322.6,3322.2,2.70901]
[1732453632567,0.07700219,3322.6,3322.0,0.03009618]
[1732453632711,0.07700219,3322.6,3322.5,2.7088]
[1732453633060,0.07700219,3322.6,3322.0,0.03009618]
[1732453633061,0.5953053,3323.5,3323.4,2.70807]
[1732453633351,0.5953053,3323.5,3322.5,2.70874]
[1732453633352,3.00911,3323.3,3322.5,2.70874]
[1732453633550,3.00935,3323.0,3322.4,2.70887]
[1732453633769,0.03022387,3322.9,3322.2,2.70904]
[1732453633911,4.63169,3322.8,3322.0,2.70918]
[1732453634258,1.6221,3322.8,3322.3,2.70891]
[1732453634459,1.6221,3322.8,3321.4,2.7097]
[1732453634626,1.6221,3322.8,3322.5,2.70879]
[1732453635418,1.6221,3322.8,3321.6,4.33263]
[1732453635621,0.03022387,3322.7,3322.1,2.70906]
[1732453635845,4.63187,3322.6,3321.7,2.70942]
[1732453636159,11.84438587,3322.5,3321.2,2.70985]
[1732453636359,3.00994,3322.4,3321.6,2.70948]
[1732453636564,3.00994,3322.4,3320.9,0.03010165]
[1732453636565,1.6221,3322.2,3320.9,0.03010165]
[1732453636866,8.804382,3322.1,3321.9,2.70928]
[1732453637016,8.804382,3322.1,3322.0,2.70921]
[1732453637452,8.804382,3323.2,3323.1,2.70831]
[1732453637617,1.6221,3323.8,3323.6,2.70784]
[1732453637823,1.6221,3323.8,3323.3,2.70814]
[1732453638022,10.426482,3323.8,3323.1,2.70829]
[1732453638363,1.07287207,3323.7,3323.0,2.70838]
[1732453638672,1.0426482,3323.7,3323.1,2.7083]
[1732453638840,3.00879,3323.6,3322.9,2.70845]
[1732453639042,0.03022387,3323.5,3323.0,2.70836]
[1732453639231,0.03022387,3323.5,3321.6,2.70949]
[1732453639232,1.6221,3322.8,3321.6,2.70949]
[1732453639546,1.6221,3322.8,3321.3,1.6231]
[1732453639547,3.0096,3322.7,3322.1,2.70907]
[1732453639862,1.5653,3322.3,3321.5,2.70961]
[1732453640018,1.5653,3322.3,3321.9,2.70927]
[1732453640219,1.5653,3322.3,3321.9,2.70923]
[1732453640415,0.07320493,3322.2,3321.9,2.70923]
[1732453640629,0.16385049,3322.2,3321.7,2.70943]
[1732453640834,0.07320493,3322.1,3321.5,2.7096]
[1732453641050,0.03022387,3322.0,3321.5,2.7096]
[1732453641255,1.63828039,3321.9,3321.3,2.70976]
[1732453641456,0.03022387,3321.8,3321.1,2.70991]
[1732453641675,3.01057,3321.7,3320.9,2.71008]
[1732453641824,3.01057,3321.7,3320.7,2.71024]
[1732453641825,1.5653,3321.5,3320.7,2.71024]
[1732453642173,8.99113587,3321.4,3320.8,2.71017]
[1732453642322,8.87723885,3321.4,3320.8,2.71017]
[1732453642674,8.87723885,3321.4,3320.3,2.71059]
[1732453642852,8.87723885,3321.4,3321.3,2.70978]
[1732453643054,0.07285685,3321.4,3321.3,2.70978]
[1732453643227,0.07285685,3321.4,3321.0,1.6343]
[1732453643228,1.6383,3322.3,3321.6,2.7095]
[1732453643428,1.6383,3322.1,3321.3,2.70977]
[1732453643629,3.01059,3321.6,3320.9,2.71009]
[1732453643858,3.01001,3322.3,3320.7,2.71026]
[1732453643859,11.91553362,3321.5,3320.7,2.71026]
[1732453644171,1.6383,3321.4,3320.9,2.71009]
[1732453644471,1.6383,3321.4,3320.7,2.71026]
[1732453644472,1.6383,3321.8,3320.8,1.66440996]
[1732453644673,1.6383,3321.8,3321.5,2.70954]
[1732453644674,0.07016775,3321.7,3321.5,2.70954]
[1732453644839,0.07016775,3321.7,3321.6,2.70953]
[1732453645165,1.6167,3322.4,3322.0,2.70915]
[1732453645459,1.6167,3322.4,3322.2,2.70904]
[1732453645668,1.6167,3322.7,3322.0,2.70921]
[1732453645875,1.6167,3322.7,3322.5,2.70875]
[1732453646167,1.6167,3322.7,3322.6,2.70872]
[1732453646549,1.6167,3322.7,3322.5,2.80879]
[1732453647125,10.421082,3323.1,3322.7,2.70864]
[1732453647435,8.804382,3323.0,3322.9,2.70846]
[1732453647967,1.6167,3323.1,3323.0,2.70839]
[1732453648342,1.6167,3323.1,3323.0,2.80839]
[1732453648540,1.6167,3323.1,3323.0,0.1]
[1732453648760,1.77837,3323.1,3323.0,0.1]
[1732453648957,10.582752,3323.1,3323.0,0.1]
[1732453649167,1.6167,3323.0,3321.2,2.70986]
[1732453649480,1.6167,3323.0,3322.1,2.70907]
[1732453649481,1.6167,3322.8,3322.1,2.70907]
[1732453649648,8.804382,3322.7,3322.1,2.70906]
[1732453649990,8.804382,3322.7,3322.2,2.70903]
[1732453650775,8.804382,3322.7,3322.0,2.70921]
[1732453651083,1.10157014,3322.6,3322.1,2.70905]
[1732453651245,1.10157014,3322.6,3321.9,2.70927]
[1732453651447,0.99059521,3322.5,3322.1,2.70908]
[1732453651792,0.99059521,3322.5,3322.2,2.70898]
[1732453651957,8.804382,3322.7,3322.2,2.70898]
[1732453652283,8.804382,3322.7,3322.4,2.70886]
[1732453652854,8.804382,3322.7,3322.5,2.70878]
[1732453653188,1.6167,3322.8,3322.5,2.70876]
[1732453653395,2.6588082,3322.8,3322.3,2.70894]
[1732453653696,2.68903207,3322.8,3322.1,2.70911]
[1732453653849,2.6588082,3322.8,3322.5,2.70874]
[1732453654168,2.6588082,3322.8,3322.7,2.70864]
[1732453654169,1.6167,3322.8,3322.7,2.70864]
[1732453654749,8.804382,3323.0,3322.9,2.70847]
[1732453655046,8.804382,3323.5,3323.4,2.70807]
[1732453655246,8.804382,3323.9,3323.4,2.70807]
[1732453655446,0.66927602,3323.9,3323.8,2.70774]
[1732453655680,8.804382,3324.7,3324.1,2.70749]
[1732453655845,0.600693,3324.5,3324.3,2.70731]
[1732453656247,0.600693,3324.5,3324.1,2.70749]
[1732453656477,0.07058404,3324.4,3324.0,2.70756]
[1732453656648,0.07058404,3324.4,3323.9,2.70758]
[1732453656981,0.10080791,3324.4,3324.1,2.70743]
[1732453657186,0.10080791,3324.4,3324.2,2.7074]
[1732453657187,0.95058829,3324.3,3324.2,2.7074]
[1732453657399,0.07058404,3324.4,3324.3,2.70733]
[1732453657547,8.804382,3324.6,3324.5,2.70717]
[1732453657751,1.6031,3325.6,3324.4,2.70725]
[1732453658058,8.804382,3325.5,3325.4,2.70644]
[1732453658271,8.964692,3325.5,3325.4,2.70644]
[1732453658871,8.964692,3325.5,3325.2,2.70654]
[1732453659077,0.03022387,3325.4,3325.0,2.70675]
[1732453659278,1.14573202,3325.4,3325.3,2.70652]
[1732453659484,1.11550815,3325.4,3325.1,2.70663]
[1732453659703,1.01814279,3325.3,3325.1,2.70663]
[1732453659854,0.03022387,3325.2,3324.9,2.70679]
[1732453660185,0.07100384,3325.1,3325.0,2.70676]
[1732453660387,1.06337909,3325.1,3324.8,2.70689]
[1732453660586,1.09360296,3325.1,3324.9,2.70684]
[1732453660745,1.5271,3324.9,3324.5,2.70711]
[1732453660946,0.25138761,3324.8,3324.6,2.70703]
[1732453661272,0.07100384,3324.8,3324.7,2.70701]
[1732453661946,1.5271,3325.3,3325.2,2.7066]
[1732453662148,1.0491792,3325.3,3325.2,2.7066]
[1732453662448,2.114341,3326.0,3325.4,2.70644]
[1732453662650,1.0918723,3325.9,3325.8,2.70611]
[1732453662974,1.5271,3326.0,3325.8,2.70611]
[1732453663144,1.5271,3326.0,3325.9,2.70603]
[1732453663383,1.55732387,3326.0,3325.7,2.70614]
[1732453663582,1.55732387,3326.0,3325.1,2.70664]
[1732453663583,0.21215464,3325.9,3325.1,2.70664]
[1732453663762,0.24237851,3325.9,3325.8,2.70611]
[1732453663961,0.21215464,3325.9,3325.8,2.70611]
[1732453664459,10.331482,3326.0,3325.9,2.70603]
[1732453664460,8.804382,3326.0,3325.9,2.70603]
[1732453664662,1.5271,3326.4,3326.3,2.7057]
[1732453664896,0.15271,3326.4,3326.3,2.7057]
[1732453665193,10.331482,3326.9,3325.7,2.70619]
[1732453665350,10.331482,3326.9,3326.8,2.7053]
[1732453665551,11.3646302,3326.9,3326.8,2.7053]
[1732453665894,9.8375302,3326.9,3326.8,2.7053]
[1732453666488,1.5271,3327.3,3327.2,2.70497]
[1732453666684,10.331482,3327.3,3327.2,2.70497]
[1732453666893,10.331482,3327.3,3327.1,2.70504]
[1732453667334,0.03022387,3327.2,3326.9,2.70521]
[1732453667514,1.0935651,3327.2,3326.9,2.70521]
[1732453668018,1.0935651,3327.2,3327.1,2.70505]
[1732453668193,1.0935651,3327.2,3324.5,0.58868368]
[1732453668194,10.445682,3327.2,3325.4,2.70644]
[1732453668396,8.804382,3327.1,3327.0,2.70513]
[1732453668704,1.6413,3327.2,3327.1,2.70505]
[1732453668901,1.6413,3327.6,3327.5,2.70473]
[1732453669126,0.525055,3327.9,3327.8,2.70448]
[1732453669309,5e-06,3327.9,3327.8,2.70448]
[1732453670795,5e-06,3327.9,3327.6,2.70465]
[1732453671015,5e-06,3327.9,3327.5,2.70471]
[1732453671016,0.03022387,3327.8,3327.5,2.70471]
[1732453671190,0.94445419,3327.7,3327.5,2.70471]
[1732453671396,0.03022387,3327.6,3326.3,1.6243]
[1732453671598,8.83460587,3327.6,3327.3,2.70482]
[1732453671830,8.83460587,3327.5,3327.3,2.70482]
[1732453672130,8.804382,3327.6,3327.5,2.70473]
[1732453674133,8.87837003,3327.6,3327.5,2.70473]
[1732453674908,0.07398803,3327.6,3327.5,2.70473]
[1732453675207,5e-06,3327.9,3327.5,2.70473]
[1732453675208,0.03022887,3327.9,3327.5,2.70473]
[1732453675398,0.07398803,3327.6,3327.5,2.70473]
[1732453675596,0.89524585,3327.9,3327.6,2.70459]
[1732453675844,5e-06,3327.9,3327.6,2.70459]
[1732453676000,5e-06,3327.9,3326.8,2.7053]
[1732453676337,0.03022887,3327.9,3327.4,2.70475]
[1732453676501,0.89826824,3327.9,3327.5,2.70471]
[1732453676896,1.6413,3327.8,3326.5,2.70554]
[1732453677101,9.09158508,3327.7,3326.4,2.70562]
[1732453677345,1.6413,3327.5,3326.8,2.70526]
[1732453677527,0.03022387,3327.4,3326.6,2.70544]
[1732453677700,0.03022387,3327.4,3327.0,2.70507]
[1732453677701,0.33475561,3327.4,3327.0,2.70507]
[1732453677902,1.6413,3327.5,3326.1,0.03005882]
[1732453678107,0.03022387,3327.4,3327.0,2.70508]
[1732453678439,0.03022387,3327.4,3326.0,2.70595]
[1732453678613,8.97153439,3327.3,3326.8,2.70529]
[1732453679148,8.804382,3327.3,3327.2,2.70497]
[1732453679309,8.804382,3327.4,3327.0,2.70512]
[1732453679642,0.03022387,3327.3,3327.2,2.70497]
[1732453679823,0.03022387,3327.3,3327.1,2.70498]
[1732453680003,0.03022387,3327.3,3326.7,2.70532]
[1732453680198,0.03022387,3327.3,3326.0,3.0]
[1732453680199,12.8039344,3327.2,3326.5,2.70552]
[1732453680544,3.00589,3326.8,3325.9,2.706]
[1732453680713,3.00614,3326.6,3325.7,2.70618]
[1732453680899,1.6223,3326.3,3325.7,2.70618]
[1732453681244,1.6223,3326.3,3325.7,2.70612]
[1732453681545,1.6223,3326.3,3325.9,2.70598]
[1732453681700,0.58945333,3326.1,3325.9,2.70598]
[1732453682246,0.03022387,3326.0,3325.3,2.70652]
[1732453682451,0.03022387,3326.0,3325.5,2.70629]
[1732453682670,0.58945333,3326.1,3325.5,2.70629]
[1732453682671,0.6196772,3326.1,3325.6,2.70626]
[1732453682847,9.354382,3326.0,3325.3,2.70646]
[1732453683051,8.83460587,3325.9,3325.3,2.70649]
[1732453683267,8.804382,3325.8,3324.5,0.03007317]
[1732453683450,10.45690587,3325.7,3324.2,1.550875]
[1732453683656,1.6223,3325.7,3325.3,2.70651]
[1732453683859,8.804382,3325.6,3325.4,2.70643]
[1732453684177,8.804382,3325.6,3325.5,2.70635]
[1732453684979,8.804382,3326.5,3326.4,2.70562]
[1732453685789,9.6848202,3326.5,3325.4,4.5504]
[1732453685971,3.00649,3326.2,3325.4,2.70637]
[1732453686178,3.00691,3325.7,3324.9,2.70679]
[1732453686358,1.647,3325.5,3324.9,2.70679]
[1732453686561,8.83460587,3325.4,3324.8,2.70692]
[1732453686893,10.15324059,3325.4,3324.9,2.70679]
[1732453687203,10.15324059,3325.4,3323.9,0.18511793]
[1732453687204,10.15324059,3325.4,3324.0,2.70758]
[1732453687350,9.41585759,3325.3,3325.0,2.70671]
[1732453687550,8.804382,3325.2,3325.0,2.70671]
[1732453687963,8.804382,3325.2,3325.1,2.70668]
[1732453688175,8.804382,3325.2,3325.1,3.248019]
[1732453688350,10.451382,3326.0,3325.8,2.70603]
[1732453688553,8.804382,3325.9,3325.8,2.70603]
[1732453689006,8.87474822,3325.9,3325.8,2.70603]
[1732453689159,0.07036622,3325.9,3325.8,2.70603]
[1732453689362,8.804382,3326.3,3325.8,2.70603]
[1732453689363,0.03022387,3326.2,3325.8,2.70603]
[1732453689564,0.07042999,3325.9,3325.8,2.70603]
[1732453689907,8.804382,3325.9,3325.8,2.70603]
[1732453690105,0.07042999,3325.9,3325.8,2.70603]
[1732453690403,0.07042999,3325.9,3325.6,2.7062]
[1732453690404,1.647,3326.4,3326.2,2.70572]
[1732453690559,1.647,3326.4,3326.3,2.7057]
[1732453690761,1.8117,3326.4,3326.3,2.7057]
[1732453691422,0.1647,3326.4,3326.3,2.7057]
[1732453691699,8.804382,3326.5,3326.4,2.70562]
[1732453692196,1.647,3327.4,3326.9,2.70514]
[1732453692362,8.804382,3327.3,3326.1,2.70587]
[1732453692669,0.61339639,3327.0,3326.9,2.70522]
[1732453692877,1.5898,3326.9,3326.2,2.70573]
[1732453693063,9.93536371,3326.8,3326.2,2.70573]
[1732453693262,9.90513984,3326.8,3326.2,2.70573]
[1732453693474,0.03022387,3326.7,3326.2,2.70577]
[1732453693679,3.58625387,3326.7,3325.8,2.70608]
[1732453693880,2.1398,3326.5,3326.2,2.70573]
[1732453694074,1.5898,3326.5,3326.3,2.7057]
[1732453694318,1.5898,3326.5,3326.4,2.70562]
[1732453694474,8.804382,3326.8,3326.7,2.70538]
[1732453695415,1.5898,3327.3,3326.9,2.70522]
[1732453695581,1.5898,3327.3,3327.1,2.70497]
[1732453695582,8.804382,3327.2,3327.1,2.70497]
[1732453696119,8.804382,3327.2,3326.5,2.70552]
[1732453696120,8.804382,3327.7,3327.6,2.70465]
[1732453696332,8.804382,3327.7,3326.8,0.0300536]
[1732453696479,8.804382,3327.6,3327.0,2.70512]
[1732453696683,8.804382,3327.6,3327.1,2.70499]
[1732453697177,8.804382,3327.6,3327.1,2.70503]
[1732453697379,8.804382,3327.6,3327.2,2.7049]
[1732453697584,8.804382,3327.6,3326.7,1.72471239]
[1732453697817,8.804382,3327.6,3327.2,2.70496]
[1732453698380,8.804382,3327.6,3327.3,1.5406]
[1732453698613,5e-06,3327.9,3327.4,0.424556]
[1732453698783,5e-06,3327.9,3327.6,2.70464]
[1732453698984,5e-06,3327.9,3327.8,2.70448]
[1732453699479,5e-06,3327.9,3327.6,2.70462]
[1732453699688,5e-06,3327.9,3327.7,2.70456]
[1732453699884,5e-06,3327.9,3327.8,2.70448]
[1732453700319,5e-06,3327.9,3327.6,0.27346669]
[1732453700526,5e-06,3327.9,3327.7,2.70449]
[1732453700684,5e-06,3327.9,3327.3,4.24547]
[1732453701026,5e-06,3327.9,3326.7,2.85941]
[1732453701027,0.03022887,3327.9,3326.9,1.5906]
[1732453701232,8.98622704,3327.8,3326.9,1.5906]
[1732453701391,0.03022387,3327.7,3326.9,1.5906]
[1732453701588,8.83460587,3327.7,3326.9,1.5906]
[1732453701794,8.83460587,3327.7,3326.4,1.5906]
[1732453701795,8.804382,3327.7,3326.4,1.5906]
[1732453702005,0.93186896,3327.6,3326.4,4.29622]
[1732453702250,1.6402,3327.4,3326.4,1.5906]
[1732453702535,1.6402,3327.4,3325.6,2.70627]
[1732453702536,3.0057,3327.1,3325.6,2.70627]
[1732453702701,12.110672,3327.0,3325.6,3.4066]
[1732453703031,12.110672,3327.0,3325.6,0.70033]
[1732453703032,9.104952,3327.0,3325.6,0.70033]
[1732453703330,10.994582,3326.9,3325.2,0.0300636]
[1732453703492,0.55,3326.6,3325.2,2.70655]
[1732453703828,0.60919218,3326.7,3325.6,2.70626]
[1732453704029,0.07131853,3326.5,3325.6,2.70626]
[1732453704214,1.4300892,3326.8,3325.8,2.7061]
[1732453704413,0.07131853,3326.4,3325.6,2.976886]
[1732453704615,1.4300892,3326.8,3325.6,2.976886]
[1732453704616,8.83460587,3326.7,3325.6,0.270626]
[1732453704835,8.83460587,3326.7,3325.6,2.976826]
[1732453704836,0.07131853,3326.3,3325.6,2.976826]
[1732453704997,9.99184912,3326.7,3325.7,2.70619]
[1732453705195,0.07131853,3326.2,3325.7,3.0038716]
[1732453705507,10.444582,3326.9,3325.8,0.03006458]
[1732453705840,10.444582,3326.9,3325.9,2.70602]
[1732453706005,0.07131853,3326.8,3325.8,0.03006458]
[1732453706208,0.07131853,3326.8,3326.3,2.70568]
[1732453706407,0.07131853,3326.8,3326.4,0.03006006]
[1732453706607,0.07131853,3326.8,3325.5,4.6333]
[1732453706608,8.804382,3327.2,3325.8,0.03005776]
[1732453706942,0.07117986,3326.7,3326.5,2.70554]
[1732453707098,1.5811,3327.3,3326.6,2.70541]
[1732453707299,0.587289,3327.5,3326.6,2.7054]
[1732453707537,0.587289,3327.5,3326.7,2.70537]
[1732453708029,0.587289,3327.5,3326.6,2.70546]
[1732453708191,0.03022387,3327.4,3326.6,2.70546]
[1732453708393,0.03022387,3327.4,3326.1,1.6333]
[1732453708598,0.03022387,3327.4,3326.2,3.0]
[1732453708791,0.36228429,3327.3,3326.2,3.0]
[1732453709030,0.587289,3327.5,3326.3,2.735711]
[1732453709192,0.587289,3327.5,3326.5,2.70549]
[1732453709395,0.587289,3327.5,3326.7,2.70538]
[1732453709594,0.587289,3327.5,3326.5,2.70551]
[1732453709907,0.61751287,3327.5,3326.5,2.70551]
[1732453710236,0.61751287,3327.5,3326.8,2.70529]
[1732453710535,0.61751287,3327.5,3326.7,2.70537]
[1732453710536,0.61751287,3327.5,3326.7,2.70532]
[1732453710738,0.61751287,3327.5,3326.8,2.70529]
[1732453710908,8.804382,3327.6,3326.4,0.03005495]
[1732453711113,8.804382,3327.7,3327.2,2.70492]
[1732453711899,8.804382,3327.7,3327.2,2.70494]
[1732453712138,8.804382,3327.7,3327.3,0.43682924]
[1732453712375,5e-06,3327.9,3327.4,2.7048]
[1732453713146,5e-06,3327.9,3327.2,2.70495]
[1732453713351,5e-06,3327.9,3327.4,2.7048]
[1732453713667,5e-06,3327.9,3327.2,2.70492]
[1732453713968,5e-06,3327.9,3327.1,1.6333]
[1732453714168,5e-06,3327.9,3327.2,2.70497]
[1732453714472,5e-06,3327.9,3327.3,2.70489]
[1732453714979,5e-06,3327.9,3326.5,1.6333]
[1732453714980,3.00538,3327.4,3326.5,1.6333]
[1732453715148,0.33076187,3327.3,3326.4,2.70562]
[1732453715333,1.5811,3327.4,3326.5,0.03005868]
[1732453715537,8.804382,3327.5,3326.9,2.70517]
[1732453715837,8.804382,3327.5,3327.4,2.70481]
[1732453716081,5e-06,3327.9,3327.4,0.270481]
[1732453716377,3.03512887,3327.9,3327.1,1.6333]
[1732453716558,3.03512887,3327.9,3327.0,3.0]
[1732453716753,3.03512887,3327.9,3326.9,2.7052]
[1732453716754,5e-06,3327.9,3327.1,3.0]
[1732453716954,5e-06,3327.9,3327.4,2.70477]
[1732453717293,5e-06,3327.9,3327.5,2.70472]
[1732453717468,5e-06,3327.9,3327.6,2.70464]
[1732453717896,5e-06,3327.9,3327.1,0.03004838]
[1732453718095,5e-06,3327.9,3327.5,2.70471]
[1732453718590,5e-06,3327.9,3327.6,2.70459]
[1732453718891,5e-06,3327.9,3327.5,2.70471]
[1732453718892,5e-06,3327.9,3327.8,2.70448]
[1732453720558,5e-06,3327.9,3327.5,1.6333]
[1732453720753,5e-06,3327.9,3327.5,4.33802]
[1732453720988,5e-06,3327.9,3327.5,2.70472]
[1732453721370,5e-06,3327.9,3327.5,3.54567]
[1732453721695,5e-06,3327.9,3327.5,0.84095]
[1732453721897,5e-06,3327.9,3327.5,3.54567]
[1732453722062,5e-06,3327.9,3327.6,2.70464]
[1732453722797,5e-06,3327.9,3327.7,2.7045]
[1732453723097,5e-06,3327.9,3327.6,2.70461]
[1732453723299,5e-06,3327.9,3327.6,3.059169]
[1732453723863,5e-06,3327.9,3327.8,2.70448]
[1732453724277,5e-06,3327.9,3327.8,4.21958]
[1732453724560,5e-06,3327.9,3327.8,7.21958]
[1732453724779,5e-06,3327.9,3327.8,8.52091641]
[1732453728565,5e-06,3327.9,3327.8,7.00581641]
[1732453728763,5e-06,3327.9,3327.4,4.3151]
[1732453729099,0.07251348,3327.8,3327.7,2.70457]
[1732453730763,0.07251348,3327.8,3327.7,5.70457]
[1732453731098,0.07251348,3327.8,3327.7,6.84900864]
[1732453731263,0.07251348,3327.8,3327.7,6.81896369]
[1732453731773,5e-06,3327.9,3327.8,5.40399]
[1732453731963,5e-06,3327.9,3327.4,1.6103]
[1732453732324,0.07245357,3327.8,3327.7,2.40399]
[1732453732513,0.07245357,3327.8,3327.7,2.644389]
[1732453732813,7.6296585,3328.6,3327.7,0.240399]
[1732453732967,7.6296585,3328.6,3327.8,2.43397223]
[1732453733168,7.6296585,3328.6,3327.5,2.43423316]
[1732453733384,7.6296585,3328.6,3328.1,2.40374]
[1732453733584,7.6296585,3328.6,3328.1,2.884493]
[1732453733806,7.6296585,3328.6,3328.1,2.40374]
[1732453733964,0.07249848,3328.5,3328.0,3.0]
[1732453734166,0.07249848,3328.5,3328.0,5.40384]
[1732453734468,0.07249848,3328.5,3328.1,3.0]
[1732453734907,0.07249848,3328.5,3327.8,2.40398]
[1732453734908,3.00447,3328.4,3327.8,2.40398]
[1732453735292,0.07256213,3328.3,3327.8,2.40398]
[1732453735466,0.07256213,3328.3,3327.9,2.4039]
[1732453735667,3.00452,3328.4,3327.8,2.40398]
[1732453735866,0.07256213,3328.2,3327.8,2.40398]
[1732453736081,10.6339285,3328.6,3327.8,2.40391]
[1732453736275,0.07256213,3328.1,3328.0,2.40379]
[1732453736567,0.07256213,3328.1,3328.0,2.40383]
[1732453736765,7.6296585,3328.6,3328.0,2.40383]
[1732453736991,0.07254341,3328.5,3328.1,2.40377]
[1732453737563,0.07254341,3328.5,3328.2,2.40367]
[1732453737765,0.07254341,3328.5,3328.3,2.40362]
[1732453738071,0.07254341,3328.5,3328.4,2.40355]
[1732453738500,0.005,3328.7,3328.5,2.40348]
[1732453738717,0.005,3328.7,3327.9,0.30300433]
[1732453738884,0.005,3328.7,3328.4,2.40355]
[1732453739090,0.005,3328.7,3328.4,2.40348]
[1732453739486,0.005,3328.7,3328.6,2.40341]
[1732453739829,0.005,3328.7,3328.4,2.4035]
[1732453740032,0.005,3328.7,3328.6,2.40341]
[1732453740329,0.005,3328.7,3328.2,2.40366]
[1732453740617,3.00427,3328.6,3328.0,2.40382]
[1732453740831,1.6278,3328.4,3327.4,1.6103]
[1732453740985,3.00459,3328.3,3327.7,2.40402]
[1732453741185,1.6278,3328.4,3327.4,2.40427]
[1732453741186,1.6278,3328.4,3328.1,2.40375]
[1732453741385,1.6278,3328.4,3327.4,2.40424]
[1732453741386,1.6278,3328.4,3328.0,2.4038]
[1732453741609,1.6278,3328.4,3327.9,2.4039]
[1732453741822,1.6278,3328.4,3327.7,2.40406]
[1732453742024,7.6296585,3328.6,3328.5,2.40348]
[1732453742392,7.6296585,3328.6,3328.3,2.40361]
[1732453742596,7.6296585,3328.6,3328.5,2.40348]
[1732453743247,7.6296585,3328.6,3327.7,0.2644504]
[1732453743525,1.6278,3328.4,3327.5,3.0]
[1732453743735,0.03022387,3328.3,3327.5,2.40415]
[1732453744030,3.17049239,3328.2,3327.0,3.99854]
[1732453744191,7.79546089,3328.2,3327.7,2.40401]
[1732453744493,0.03022387,3328.1,3327.7,2.40401]
[1732453744694,10.6342485,3328.3,3328.0,2.40379]
[1732453744695,7.6296585,3328.3,3328.0,2.40379]
[1732453745112,7.6296585,3328.3,3328.1,2.40377]
[1732453745286,7.6296585,3328.3,3328.0,2.40379]
[1732453745623,0.03022387,3328.2,3327.8,2.40396]
[1732453745811,0.03022387,3328.2,3327.2,3.42989733]
[1732453745997,0.03022387,3328.2,3327.8,2.40392]
[1732453746434,3.03492387,3328.2,3327.7,2.40405]
[1732453746807,3.00537,3327.4,3326.8,2.40468]
[1732453747008,4.53324,3327.2,3326.5,2.40487]
[1732453747324,3.03584387,3327.1,3326.6,0.240487]
[1732453747524,3.00575,3327.0,3326.1,2.4052]
[1732453747843,3.00596,3326.8,3326.1,2.4052]
[1732453748001,8.08602589,3327.0,3326.1,2.4052]
[1732453748002,1.5277,3326.7,3326.3,2.40502]
[1732453748201,1.5277,3326.7,3326.3,2.40505]
[1732453748602,3.00618,3326.5,3325.9,2.40534]
[1732453748842,0.03022387,3326.6,3325.8,0.39056]
[1732453749054,3.00653,3326.1,3325.2,2.40583]
[1732453749346,3.00653,3326.1,3324.8,2.43617306]
[1732453749347,3.00703,3325.6,3324.8,2.40611]
[1732453749548,3.00758,3325.0,3324.0,0.31283444]
[1732453749705,3.03786387,3324.9,3324.3,2.40646]
[1732453749906,3.00778,3324.8,3324.1,2.40665]
[1732453750158,0.03022387,3324.8,3324.0,2.40673]
[1732453750444,0.07240114,3324.7,3324.4,2.40644]
[1732453750626,1.5277,3324.7,3324.2,2.40657]
[1732453750803,0.10051878,3324.6,3324.2,2.40657]
[1732453751012,0.10051878,3324.6,3324.4,2.40642]
[1732453751013,0.07029491,3324.6,3324.4,2.40642]
[1732453751345,0.10051878,3324.6,3324.2,2.40657]
[1732453751857,0.07029491,3324.6,3324.5,2.40637]
[1732453752057,7.6296585,3325.1,3325.0,2.40601]
[1732453752206,1.5277,3325.7,3325.6,2.40558]
[1732453752414,7.6296585,3326.1,3325.6,2.40558]
[1732453752620,1.5277,3326.1,3325.9,2.40536]
[1732453752922,0.03022387,3326.4,3325.2,1.5001]
[1732453753143,1.5277,3326.1,3324.4,2.40639]
[1732453753348,3.03647387,3326.4,3323.8,1.5001]
[1732453753349,3.00733,3325.2,3323.8,1.5001]
[1732453753617,7.65988237,3325.1,3324.5,2.40634]
[1732453753962,7.6296585,3325.0,3324.5,2.40634]
[1732453754133,7.6296585,3325.0,3323.9,2.647436]
[1732453754134,7.6296585,3325.0,3324.8,2.40613]
[1732453754317,7.6296585,3325.0,3324.9,2.40608]
[1732453755044,1.5277,3325.8,3324.9,4.81216]
[1732453755223,1.5277,3325.8,3325.0,0.481221]
[1732453755417,1.5277,3325.8,3325.5,2.40559]
[1732453755625,1.5277,3325.8,3325.3,2.40578]
[1732453755843,1.5277,3325.8,3325.6,2.40552]
[1732453756014,1.5277,3325.8,3325.7,2.4055]
[1732453756215,1.5277,3326.3,3325.8,2.40543]
[1732453756440,1.5277,3326.3,3325.8,0.240543]
[1732453756645,0.03022387,3326.2,3325.7,2.40545]
[1732453756819,3.03670387,3326.2,3325.5,2.40564]